bitfinex/quotes_SOLUSD_20250131
["timestamp","ask_amount","ask_price","bid_price","bid_amount"]
[1738349129428,0.81162046,231.12,231.01,35.7213997]
[1738349129840,0.81162046,231.12,231.01,0.57394788]
[1738349130027,0.81147495,231.11,231.0,0.57365686]
[1738349130230,0.12549,231.09,230.96,0.57381104]
[1738349130459,0.8116737,231.09,230.96,35.14745182]
[1738349130620,0.81152156,231.08,230.97,0.57375008]
[1738349130938,3.66,231.13,230.97,0.57375008]
[1738349130939,0.811589,231.07,230.97,0.57375008]
[1738349131123,0.811589,231.12,230.98,35.14745182]
[1738349131318,0.811589,231.12,230.99,0.57364321]
[1738349131543,0.811589,231.12,231.0,35.14745182]
[1738349131717,0.811589,231.12,231.01,0.57360164]
[1738349132036,3.68,231.15,231.06,35.14745182]
[1738349132239,3.68,231.15,231.07,0.5730971]
[1738349132635,0.12549,231.14,231.03,0.573358]
[1738349132824,0.12549,231.14,231.0,0.57351589]
[1738349133726,0.12549,231.12,230.97,0.57372251]
[1738349133927,0.81152471,231.11,230.98,35.14745182]
[1738349134140,0.81152471,231.11,231.0,35.14745182]
[1738349134444,0.12549,231.14,231.01,0.57360492]
[1738349134827,0.12549,231.12,231.01,0.57360492]
[1738349135143,0.81148918,231.11,231.01,0.57360492]
[1738349135439,0.81148918,231.11,230.94,7.2393]
[1738349135440,0.93692525,231.1,230.99,0.57357745]
[1738349135633,0.81160385,231.09,230.97,0.57390403]
[1738349135832,0.81154861,231.08,230.97,0.57390403]
[1738349136029,0.9370414,231.11,230.97,0.57390403]
[1738349136227,0.03,231.14,230.95,0.57391568]
[1738349136228,0.12549,231.09,230.95,0.57391568]
[1738349136433,0.12549,231.07,230.95,0.57391568]
[1738349136625,0.12549,231.07,230.93,1.5827]
[1738349136626,0.12549,231.07,230.93,2.15670176]
[1738349136827,0.12549,231.1,230.93,2.09370176]
[1738349137148,1.12549,231.08,230.91,0.57415422]
[1738349137340,0.12549,231.04,230.87,0.5743798]
[1738349137549,31.0,231.08,230.87,0.5743798]
[1738349137550,0.1482,231.01,230.87,0.5743798]
[1738349137731,0.1482,231.01,230.79,36.67595182]
[1738349137732,0.12549,230.99,230.81,0.57467959]
[1738349137935,0.12549,230.97,230.8,16.26327105]
[1738349138136,34.66,231.0,230.8,16.26327105]
[1738349138137,0.12549,230.95,230.81,35.14745182]
[1738349138336,0.12549,230.93,230.8,16.26327105]
[1738349138560,0.81219619,230.99,230.85,35.14745182]
[1738349138864,0.81219619,230.99,230.88,35.14745182]
[1738349139152,3.66,231.0,230.94,35.14745182]
[1738349139532,3.66,231.0,230.95,0.57420885]
[1738349139764,3.66,231.0,230.94,35.14745182]
[1738349139765,3.66,231.0,230.92,35.14745182]
[1738349140128,3.66,231.0,230.94,35.14745182]
[1738349140425,3.66,231.0,230.89,4.3309]
[1738349140426,3.66,231.0,230.96,35.14745182]
[1738349140627,3.66,231.0,230.96,35.72148425]
[1738349140859,3.68,231.04,230.98,35.14745182]
[1738349141036,3.68,231.04,231.0,35.14745182]
[1738349141238,3.68,231.04,230.98,35.14745182]
[1738349141439,3.68,231.04,230.99,0.57390782]
[1738349141944,3.68,231.04,231.02,35.14745182]
[1738349142152,3.68,231.1,231.03,0.57358043]
[1738349142325,0.81152323,231.09,230.94,37.30563225]
[1738349142748,0.81152323,231.09,230.96,35.14745182]
[1738349142950,0.12549,231.08,230.92,0.57388505]
[1738349143145,0.81174511,231.07,230.93,0.57419717]
[1738349143344,0.12549,231.06,230.93,0.57419717]
[1738349143534,0.81173019,231.05,230.95,35.14745182]
[1738349143733,0.81173019,231.05,230.97,35.14745182]
[1738349144128,0.81166067,231.08,230.97,35.14745182]
[1738349144323,0.12549,231.07,230.97,35.14745182]
[1738349144545,0.81169925,231.06,230.98,0.57410546]
[1738349144745,0.81161799,231.08,230.92,0.57394293]
[1738349144947,20.12549,231.07,230.91,41.19955182]
[1738349145135,0.12549,231.05,230.93,35.14745182]
[1738349145336,0.81176172,231.04,230.94,0.57423039]
[1738349145644,0.12549,231.03,230.91,35.14745182]
[1738349145842,0.12549,231.01,230.92,0.57443534]
[1738349146043,0.81182903,231.06,230.93,35.14745182]
[1738349146236,0.81182903,231.06,230.94,0.57413337]
[1738349146428,0.12549,231.05,230.94,0.57413337]
[1738349146628,0.81175264,231.04,230.94,0.57413337]
[1738349146852,0.12549,231.03,230.93,35.14745182]
[1738349147048,0.12549,231.01,230.87,2.23548373]
[1738349147232,0.12549,230.99,230.87,0.57418373]
[1738349147435,0.12549,230.99,230.87,35.72163555]
[1738349147745,0.12549,231.02,230.87,35.72163555]
[1738349147937,0.81195234,231.01,230.87,0.57418373]
[1738349148136,0.81195234,231.01,230.88,0.57463549]
[1738349148338,0.81195234,231.01,230.89,35.14745182]
[1738349148532,0.81186566,231.03,230.93,0.063]
[1738349148853,0.81186566,231.03,230.95,21.61782138]
[1738349149060,0.1482,231.07,230.95,21.61782138]
[1738349149061,3.68,231.02,230.96,0.5741783]
[1738349149358,3.68,231.05,230.99,21.61782138]
[1738349149653,3.68,231.05,231.01,21.61782138]
[1738349149880,3.68,231.07,231.02,0.57365546]
[1738349150535,3.68,231.07,230.95,0.57363907]
[1738349150536,0.81146606,231.06,230.95,0.57363907]
[1738349150946,0.81146606,231.06,230.95,22.19146045]
[1738349152251,0.12549,231.05,230.93,0.063]
[1738349152453,0.12549,231.03,230.93,0.063]
[1738349152637,0.12549,231.01,230.93,0.063]
[1738349152842,0.12549,230.99,230.93,0.063]
[1738349153041,0.12549,230.97,230.93,0.063]
[1738349153249,0.12549,230.95,230.93,0.063]
[1738349153566,0.81214847,230.94,230.93,0.063]
[1738349153767,0.93763847,230.94,230.93,0.063]
[1738349154841,0.12549,230.94,230.93,0.063]
[1738349155041,0.9376752,230.94,230.93,0.063]
[1738349156168,0.12549,230.94,230.93,0.063]
[1738349156554,0.8121242,230.97,230.93,0.063]
[1738349156743,3.64,230.94,230.93,0.063]
[1738349157054,3.76549,230.94,230.93,0.063]
[1738349157253,4.57766041,230.94,230.93,0.063]
[1738349158845,24.57766041,230.94,230.93,0.063]
[1738349159043,4.57766041,230.94,230.93,0.063]
[1738349159353,3.64,230.94,230.93,0.063]
[1738349159555,4.45205027,230.94,230.93,0.063]
[1738349159753,3.64,230.94,230.93,0.063]
[1738349160348,3.76549,230.94,230.93,0.063]
[1738349160646,3.64,230.94,230.93,0.063]
[1738349161048,4.57748174,230.94,230.93,0.063]
[1738349161346,4.45199174,230.94,230.93,0.063]
[1738349161552,2.61034936,230.98,230.93,0.063]
[1738349161756,0.03,231.01,230.93,0.063]
[1738349161757,3.62,230.97,230.93,0.063]
[1738349162165,3.62,230.97,230.94,35.16045468]
[1738349162470,4.45176943,230.96,230.93,0.063]
[1738349162872,3.64,230.96,230.93,0.063]
[1738349163372,0.81186506,230.95,230.93,0.063]
[1738349163551,0.12549,230.94,230.93,0.063]
[1738349163953,20.12549,230.94,230.93,0.063]
[1738349165047,0.12549,230.94,230.93,0.063]
[1738349165262,71.60549,230.94,230.93,0.063]
[1738349168296,116.01733853,230.94,230.93,0.063]
[1738349168458,118.62768789,230.94,230.93,0.063]
[1738349168851,74.21583936,230.94,230.93,0.063]
[1738349169052,75.02814667,230.94,230.93,0.063]
[1738349169490,88.4399952,230.94,230.93,0.063]
[1738349169668,87.62768789,230.94,230.93,0.063]
[1738349170350,88.62768789,230.94,230.93,0.063]
[1738349170788,87.62768789,230.94,230.93,0.063]
[1738349171563,88.62768789,230.94,230.93,0.063]
[1738349173153,92.07023559,230.94,230.93,0.063]
[1738349173355,0.12549,230.86,230.8,15.68826027]
[1738349173589,0.12549,230.82,230.8,15.68826027]
[1738349173882,3.66,230.81,230.8,15.68826027]
[1738349174176,4.47236919,230.82,230.8,15.68826027]
[1738349174387,0.81243434,230.89,230.8,15.68826027]
[1738349174588,3.68,230.88,230.83,35.16045468]
[1738349174883,3.68,230.88,230.84,2.15051498]
[1738349175186,3.68,230.9,230.84,1.5756]
[1738349175684,3.68,230.9,230.85,0.5749857]
[1738349176055,3.68,230.9,230.84,1.5756]
[1738349176393,0.81220888,230.9,230.84,1.5756]
[1738349176577,0.03,231.01,230.95,8.653]
[1738349176779,0.03,231.01,230.95,30.25105052]
[1738349177080,6.46281856,231.04,231.02,1.0]
[1738349177290,6.48488072,231.12,231.04,1.5937]
[1738349177452,6.48488072,231.12,231.07,21.59805052]
[1738349177651,6.48488072,231.12,231.04,1.5937]
[1738349177652,0.23708416,231.11,231.04,1.5937]
[1738349177925,0.23708416,231.11,231.01,6.5876]
[1738349178256,20.0,231.09,231.01,6.5876]
[1738349178452,0.23708416,231.08,230.97,1.6144]
[1738349178781,3.7,231.07,230.97,1.6144]
[1738349178969,0.23708416,231.06,230.97,1.6144]
[1738349179483,0.23708416,231.06,230.98,0.64935417]
[1738349179679,0.23708416,231.06,230.97,23.86175177]
[1738349179989,0.23708416,231.06,230.97,1.6144]
[1738349180292,13.64893269,231.06,230.97,1.6144]
[1738349180453,20.0,231.03,230.95,6.4815]
[1738349180655,20.0,231.03,230.96,22.24747601]
[1738349180857,20.0,231.03,230.99,21.59805052]
[1738349181073,0.23708416,231.06,230.99,21.59805052]
[1738349181281,0.23708416,231.06,230.97,21.59805052]
[1738349181652,0.87278465,231.13,231.03,21.59805052]
[1738349181653,0.23708416,231.1,231.03,21.59805052]
[1738349181858,3.72,231.09,231.05,21.59805052]
[1738349182058,0.23708416,231.08,231.03,21.59805052]
[1738349182287,0.23708416,231.08,231.01,21.59805052]
[1738349182578,0.23708416,231.08,230.99,21.59805052]
[1738349183365,0.23708416,231.08,230.95,28.07955052]
[1738349183580,0.23708416,231.08,230.96,0.64935483]
[1738349183760,0.23708416,231.08,230.97,21.59805052]
[1738349183958,0.23708416,231.08,230.96,0.64935483]
[1738349184300,0.23708416,231.08,230.96,22.24740535]
[1738349184466,3.7,231.07,230.96,22.24740535]
[1738349184667,3.7,231.07,230.95,6.4815]
[1738349185171,3.7,231.07,230.96,0.64936362]
[1738349185816,3.7,231.07,230.96,22.24741414]
[1738349186099,3.7,231.07,231.01,0.063]
[1738349186295,4.7,231.07,231.01,0.063]
[1738349186594,20.0,231.03,231.01,0.063]
[1738349186797,1.0,231.05,231.01,0.063]
[1738349187094,33.41184853,231.04,231.01,0.063]
[1738349187276,34.28668681,231.04,231.01,0.063]
[1738349188498,20.87483828,231.04,231.01,0.063]
[1738349189210,13.41184853,231.02,231.01,0.063]
[1738349189394,14.41184853,231.02,231.01,0.063]
[1738349189597,16.15947146,231.02,231.01,0.063]
[1738349190495,17.15947146,231.02,231.01,0.063]
[1738349191082,20.0,230.95,230.83,6.2076]
[1738349193097,13.41184853,230.94,230.83,6.2076]
[1738349193396,20.0,230.91,230.8,15.68826027]
[1738349194180,20.0,230.92,230.8,15.68826027]
[1738349194379,20.0,230.9,230.81,0.64994531]
[1738349194779,3.7,230.93,230.81,0.64994531]
[1738349194980,3.7,230.93,230.8,15.68826027]
[1738349195300,3.7,230.93,230.81,0.64984416]
[1738349195700,3.7,230.93,230.81,22.24789468]
[1738349195899,3.72,230.92,230.82,21.59805052]
[1738349196082,3.72,230.92,230.81,0.64984416]
[1738349196483,3.72,230.92,230.8,15.68826027]
[1738349197303,3.72,230.92,230.81,0.64981904]
[1738349197598,3.72,230.92,230.81,22.24786956]
[1738349198601,3.72,230.92,230.83,21.59805052]
[1738349198779,3.72,230.95,230.85,21.59805052]
[1738349198979,3.72,230.95,230.84,0.64960322]
[1738349199300,3.72,230.95,230.83,0.64968259]
[1738349199483,3.72,230.95,230.81,0.64970561]
[1738349200601,3.72,230.95,230.83,21.59805052]
[1738349200904,3.72,230.95,230.84,0.64963417]
[1738349201886,3.72,230.95,230.82,0.6496771]
[1738349202185,3.72,230.95,230.82,22.24772762]
[1738349202576,20.0,231.0,230.84,21.59805052]
[1738349202782,3.74,230.99,230.86,21.59805052]
[1738349202985,3.74,230.99,230.87,0.64955967]
[1738349203190,3.74,230.99,230.84,21.59805052]
[1738349203482,3.74,230.99,230.85,0.64960586]
[1738349204245,20.0,231.0,230.85,0.64960586]
[1738349204381,3.74,230.99,230.86,21.59805052]
[1738349204728,0.03,231.01,230.89,1.6544]
[1738349205007,0.03,231.01,230.94,21.59805052]
[1738349205216,0.03,231.01,230.95,0.64936601]
[1738349206505,0.03,231.01,230.93,0.64931488]
[1738349206802,0.03,231.01,230.9,0.64943743]
[1738349207008,0.03,231.01,230.9,22.24748795]
[1738349207192,0.03,231.01,230.91,21.59805052]
[1738349207503,0.03,231.01,230.93,21.59805052]
[1738349207703,0.03,231.01,230.97,21.59805052]
[1738349207879,0.03,231.01,231.0,6.4257]
[1738349208095,51.48,231.11,231.0,30.18064662]
[1738349208297,51.48,231.11,231.03,21.59805052]
[1738349208501,51.48,231.11,231.04,0.64903321]
[1738349208702,51.48,231.11,231.02,0.64909124]
[1738349208909,51.48,231.11,231.0,7.9334]
[1738349209118,20.0,231.08,231.0,7.9334]
[1738349209713,23.72,231.08,231.0,7.9334]
[1738349210117,3.72,231.08,231.01,0.64924749]
[1738349210425,3.72,231.1,231.01,0.64924749]
[1738349210625,51.48,231.11,231.04,21.59805052]
[1738349210838,51.48,231.11,231.05,0.6490415]
[1738349211051,51.48,231.11,231.08,21.59805052]
[1738349211321,0.03,231.12,231.09,0.6489447]
[1738349211820,0.03,231.12,231.08,0.64892278]
[1738349212129,0.03,231.12,231.1,21.59805052]
[1738349212297,0.03,231.2,231.12,1.5102]
[1738349212501,0.03,231.2,231.16,21.59805052]
[1738349212701,0.03,231.2,231.17,0.64875801]
[1738349213727,0.03,231.28,231.2,6.6128]
[1738349214104,20.0,231.26,231.2,6.6128]
[1738349214427,1.74762293,231.27,231.14,6.1971]
[1738349214724,20.0,231.26,231.14,6.1971]
[1738349214928,20.0,231.26,231.14,6.84592922]
[1738349215437,1.74762293,231.27,231.14,6.84592922]
[1738349215438,23.72,231.24,231.14,6.84592922]
[1738349215600,23.72,231.24,231.14,6.1971]
[1738349215805,3.72,231.24,231.09,6.1971]
[1738349216005,4.59278465,231.24,231.09,6.1971]
[1738349216609,13.41184853,231.23,231.09,6.1971]
[1738349216811,20.0,231.16,231.05,2.31283656]
[1738349217004,20.0,231.19,231.05,1.6638]
[1738349217210,20.0,231.19,231.06,0.64911375]
[1738349217512,0.87278465,231.22,231.06,35.73166093]
[1738349217830,3.72,231.24,231.06,0.64911375]
[1738349218030,3.72,231.24,231.07,35.08254718]
[1738349218223,3.72,231.24,231.05,2.31274852]
[1738349218409,20.0,231.2,231.05,2.31274852]
[1738349218609,33.41184853,231.19,231.05,1.6638]
[1738349218826,3.74,231.26,231.08,35.08254718]
[1738349219030,3.74,231.26,231.09,0.64890547]
[1738349219205,13.44184853,231.25,231.09,0.64890547]
[1738349219405,20.03,231.25,231.09,0.64890547]
[1738349219604,20.0,231.24,231.09,35.73145265]
[1738349220133,0.03,231.25,231.09,35.73145265]
[1738349220428,0.03,231.25,231.14,6.4396]
[1738349220623,0.03,231.25,231.19,35.08254718]
[1738349220809,0.03,231.25,231.19,0.64863225]
[1738349221307,0.03,231.25,231.14,6.4396]
[1738349221511,20.03,231.25,231.14,6.4396]
[1738349221810,20.03,231.25,231.1,1.6464]
[1738349221811,13.41184853,231.24,231.1,1.6464]
[1738349222022,20.0,231.23,231.1,1.6464]
[1738349222326,20.0,231.19,231.08,6.1837]
[1738349222638,20.0,231.15,231.03,2.17379383]
[1738349222936,20.0,231.15,231.03,1.5247]
[1738349223433,20.0,231.11,231.01,6.1837]
[1738349223645,3.74,231.1,231.01,6.1837]
[1738349223815,3.74,231.1,230.97,2.19973002]
[1738349224207,3.74,231.1,230.97,1.5504]
[1738349224627,3.74,231.1,231.09,1.00306]
[1738349225042,20.0,231.11,231.09,1.00306]
[1738349225339,3.74,231.1,231.09,1.00306]
[1738349225511,3.74,231.1,230.97,1.5504]
[1738349225512,20.0,231.07,230.97,1.5504]
[1738349227036,20.0,231.07,231.0,0.063]
[1738349227734,19.94949004,231.07,231.0,0.063]
[1738349228932,3.72,231.1,231.0,35.14554718]
[1738349229140,3.72,231.1,231.0,0.063]
[1738349229839,0.03,231.15,231.0,0.063]
[1738349230020,3.72,231.09,231.0,0.063]
[1738349230221,3.72,231.09,231.01,0.64914984]
[1738349230437,0.03,231.15,231.01,0.64914984]
[1738349230638,3.72,231.14,231.03,7.9128]
[1738349230843,3.72,231.14,231.04,0.64903509]
[1738349231044,3.72,231.14,231.03,7.9128]
[1738349231232,3.72,231.14,231.03,6.2684]
[1738349231752,3.72,231.14,231.04,0.64926364]
[1738349232437,23.72,231.14,231.03,6.2684]
[1738349233440,13.41184853,231.13,231.03,6.2684]
[1738349233642,20.0,231.1,231.0,0.063]
[1738349233944,20.0,231.06,231.0,0.063]
[1738349234324,20.0,231.02,231.0,0.063]
[1738349234940,20.0,231.02,230.92,6.3229]
[1738349235118,20.0,230.98,230.84,7.7106]
[1738349235327,3.7,230.97,230.84,7.7106]
[1738349235541,3.7,230.97,230.85,0.64969351]
[1738349236333,3.7,230.97,230.85,22.27834226]
[1738349236533,3.7,230.97,230.86,21.62864875]
[1738349236728,3.7,230.97,230.89,21.62864875]
[1738349237048,3.7,230.97,230.9,0.64950693]
[1738349237234,3.7,230.97,230.9,22.27815568]
[1738349237948,3.7,230.97,230.9,0.64950693]
[1738349238252,3.7,230.97,230.91,0.64953044]
[1738349238450,3.7,230.97,230.88,0.64953044]
[1738349238756,3.7,230.97,230.89,21.62864875]
[1738349238937,3.7,230.97,230.9,0.64948118]
[1738349239935,3.7,230.97,230.91,0.64949861]
[1738349240249,3.7,230.97,230.88,0.64949869]
[1738349240555,3.7,230.97,230.88,0.71249869]
[1738349241849,3.7,230.97,230.89,21.62864875]
[1738349242051,51.48,231.03,230.93,21.62864875]
[1738349242235,51.48,231.03,230.95,21.62864875]
[1738349242436,0.03,231.0,230.99,21.62864875]
[1738349242654,0.03,231.0,230.99,22.27785717]
[1738349242861,0.03,231.15,231.02,21.62864875]
[1738349243158,0.03,231.15,231.1,6.018]
[1738349243335,0.03,231.15,231.11,0.64890532]
[1738349243861,0.03,231.15,231.13,23.21634875]
[1738349244040,0.03,231.24,231.14,0.64871774]
[1738349244360,20.0,231.22,231.14,0.64871774]
[1738349246037,0.03,231.24,231.17,35.06726726]
[1738349246233,0.03,231.24,231.18,0.64865646]
[1738349246460,0.03,231.24,231.14,0.64865646]
[1738349246759,20.0,231.22,231.14,0.64865646]
[1738349246961,0.03,231.24,231.15,35.06726726]
[1738349247264,0.03,231.24,231.23,35.06726726]
[1738349248059,0.03,231.24,231.18,2.64856949]
[1738349248276,0.03,231.24,231.18,0.64856949]
[1738349248443,0.03,231.24,231.19,35.71582916]
[1738349249037,0.03,231.24,231.21,35.06726726]
[1738349249348,0.03,231.24,231.23,35.06726726]
[1738349249867,0.03,231.24,231.22,35.7158449]
[1738349251346,0.03,231.24,231.23,48.47911579]
[1738349251550,0.03,231.28,231.24,13.41184853]
[1738349251751,0.03,231.28,231.27,35.06726726]
[1738349251962,0.03,231.28,231.27,35.71561471]
[1738349252160,0.03,231.28,231.23,6.1955]
[1738349252477,0.03,231.28,231.24,0.64859577]
[1738349252650,0.03,231.28,231.23,6.1955]
[1738349252853,0.03,231.28,231.24,0.64852273]
[1738349253068,0.03,231.28,231.24,35.71578999]
[1738349253266,0.03,231.28,231.26,35.06726726]
[1738349253465,0.03,231.28,231.27,0.6484095]
[1738349254385,0.03,231.28,231.23,6.1955]
[1738349254570,0.03,231.28,231.18,0.64863201]
[1738349254755,20.03,231.28,231.17,0.64871153]
[1738349254954,20.03,231.28,231.16,6.622]
[1738349255151,20.03,231.28,231.17,0.64882873]
[1738349255775,0.03,231.28,231.17,0.64882873]
[1738349256282,0.03,231.28,231.17,35.71609599]
[1738349256805,0.03,231.28,231.21,35.06726726]
[1738349256965,0.03,231.28,231.23,35.06726726]
[1738349257152,0.03,231.28,231.26,35.06726726]
[1738349257355,0.03,231.28,231.27,0.64840774]
[1738349257685,0.03,231.28,231.27,35.715675]
[1738349258479,0.03,231.35,231.28,1.0]
[1738349258664,0.03,231.35,231.34,35.06726726]
[1738349258979,0.03,231.35,231.34,35.71536453]
[1738349259865,0.03,231.35,231.32,35.71540372]
[1738349260067,0.03,231.35,231.32,0.64813646]
[1738349260261,0.03,231.35,231.3,0.64828542]
[1738349260875,0.03,231.35,231.28,0.64835805]
[1738349261084,0.03,231.35,231.24,0.64844942]
[1738349261305,0.03,231.35,231.23,35.06726726]
[1738349261490,0.03,231.35,231.29,35.06726726]
[1738349261700,0.03,231.35,231.33,35.06726726]
[1738349261907,0.03,231.35,231.34,35.71541063]
[1738349262602,0.03,231.35,231.34,0.64814337]
[1738349262793,0.03,231.35,231.3,35.06726726]
[1738349262986,0.03,231.35,231.32,35.06726726]
[1738349263302,0.03,231.35,231.33,0.6482048]
[1738349263604,0.03,231.35,231.34,35.06726726]
[1738349264795,0.03,231.35,231.34,21.53419626]
[1738349265688,0.03,231.38,231.36,13.41184853]
[1738349265873,0.03,231.52,231.4,2.0]
[1738349266071,0.03,231.52,231.43,21.53419626]
[1738349266306,0.03,231.52,231.43,22.18201531]
[1738349266974,0.03,231.52,231.43,23.18201531]
[1738349267173,0.03,231.52,231.44,13.41184853]
[1738349267377,0.03,231.52,231.47,21.53419626]
[1738349267614,0.03,231.52,231.47,22.18192684]
[1738349269784,0.03,231.52,231.5,13.41184853]
[1738349270001,0.03,231.52,231.51,22.18176753]
[1738349270219,0.03,231.52,231.51,37.59361606]
[1738349270580,0.03,231.58,231.54,1.0]
[1738349270903,0.03,231.58,231.57,21.53419626]
[1738349271105,0.03,231.58,231.57,22.18165692]
[1738349272088,0.03,231.58,231.57,21.53419626]
[1738349272807,0.03,231.58,231.52,22.18171162]
[1738349273507,0.03,231.58,231.57,21.53419626]
[1738349273812,0.03,231.58,231.57,22.18164025]
[1738349274111,0.03,231.58,231.57,23.18164025]
[1738349274689,0.03,231.58,231.57,22.18164025]
[1738349274993,0.03,231.58,231.57,21.53419626]
[1738349275384,0.03,231.58,231.57,22.18159498]
[1738349275802,0.03,231.59,231.58,25.31784853]
[1738349275989,0.03,231.76,231.62,1.0]
[1738349276206,0.03,231.76,231.66,1.0]
[1738349276389,0.03,231.76,231.68,21.53419626]
[1738349276706,0.03,231.76,231.68,34.88789758]
[1738349277683,0.03,231.76,231.68,35.88789758]
[1738349277890,0.03,231.76,231.74,1.0]
[1738349278084,0.03,231.76,231.75,36.53485546]
[1738349278289,0.03,231.76,231.75,35.53485546]
[1738349278506,0.03,231.76,231.75,36.53485546]
[1738349279086,0.03,231.8,231.78,21.0]
[1738349279394,0.03,231.8,231.79,35.53473209]
[1738349280612,0.03,231.8,231.79,0.64683451]
[1738349280910,0.03,231.8,231.76,0.64699778]
[1738349283613,20.0,231.77,231.64,0.64724674]
[1738349283817,20.0,231.77,231.65,34.88789758]
[1738349284032,0.03,231.8,231.67,34.88789758]
[1738349284207,0.03,231.8,231.68,0.64722258]
[1738349284716,0.03,231.8,231.7,34.88789758]
[1738349284923,0.03,231.8,231.76,34.88789758]
[1738349285130,0.03,231.8,231.77,0.64698388]
[1738349285426,0.03,231.8,231.68,35.53492745]
[1738349285643,0.03,231.8,231.69,1.0]
[1738349285824,0.03,231.8,231.7,0.64719461]
[1738349285993,0.03,231.8,231.71,34.88789758]
[1738349286197,0.03,231.8,231.79,34.88789758]
[1738349286532,0.03,231.8,231.75,34.88789758]
[1738349286739,0.03,231.8,231.76,0.6470381]
[1738349286896,0.03,231.8,231.77,34.88789758]
[1738349287101,0.03,231.8,231.78,0.64697571]
[1738349288030,0.03,231.8,231.79,0.6469955]
[1738349288229,0.03,231.8,231.76,0.64699169]
[1738349289191,0.03,231.8,231.77,0.64704121]
[1738349289425,0.03,231.8,231.74,0.64709521]
[1738349289815,0.03,231.8,231.71,0.64714262]
[1738349290013,0.03,231.8,231.69,0.64720189]
[1738349290221,0.03,231.8,231.72,34.88789758]
[1738349290421,0.03,231.8,231.73,0.64708763]
[1738349290602,0.03,231.8,231.73,35.53498521]
[1738349290812,0.03,231.8,231.7,0.063]
[1738349291114,20.0,231.78,231.7,0.063]
[1738349292237,20.0,231.74,231.7,0.063]
[1738349292631,20.0,231.71,231.7,0.063]
[1738349292815,33.41184853,231.71,231.7,0.063]
[1738349293326,2.0801,231.78,231.7,0.063]
[1738349293525,20.0,231.71,231.7,0.063]
[1738349293929,33.41184853,231.71,231.7,0.063]
[1738349294101,20.0,231.67,231.58,0.64750292]
[1738349294296,20.0,231.67,231.59,34.88789758]
[1738349294495,20.0,231.67,231.55,1.0]
[1738349294496,13.41184853,231.66,231.55,0.64752781]
[1738349294701,20.0,231.63,231.56,0.64765558]
[1738349294910,20.0,231.63,231.54,0.64759264]
[1738349295099,20.0,231.63,231.51,0.6476927]
[1738349295837,20.0,231.59,231.5,0.64771239]
[1738349296039,20.0,231.59,231.45,0.64785793]
[1738349296332,20.0,231.59,231.5,34.88789758]
[1738349296637,20.0,231.59,231.43,10.6196]
[1738349296638,20.0,231.59,231.51,0.64774673]
[1738349296934,1.0171,231.68,231.51,0.64774673]
[1738349297141,20.0,231.66,231.51,35.53564431]
[1738349297500,4.92848181,231.75,231.56,34.88789758]
[1738349297700,4.62,231.74,231.57,35.53540335]
[1738349297900,20.0,231.64,231.57,0.64750577]
[1738349298121,1.0171,231.75,231.57,0.64750577]
[1738349298122,3.62,231.68,231.59,34.88789758]
[1738349298326,3.62,231.68,231.6,35.53534869]
[1738349298645,3.62,231.68,231.61,34.88789758]
[1738349298816,3.62,231.68,231.56,1.0]
[1738349298817,3.62,231.68,231.62,0.64747811]
[1738349299128,3.62,231.68,231.6,0.64748223]
[1738349299502,3.62,231.68,231.56,0.64754876]
[1738349301920,17.06184853,231.8,231.69,34.88789758]
[1738349302105,17.06184853,231.8,231.7,0.64721367]
[1738349302304,0.03,231.8,231.7,0.64721367]